bitfinex-derivatives/quotes_SOLF0:USTF0_20240827
["timestamp","ask_amount","ask_price","bid_price","bid_amount"]
[1724774246496,3.2536,153.68,153.67,0.04178922]
[1724774247597,3.2535,153.69,153.67,0.04178922]
[1724774248502,27.53306236,153.71,153.67,0.04178922]
[1724774248695,0.04306236,153.71,153.67,0.04178922]
[1724774249001,0.04306236,153.71,153.68,5.0]
[1724774249203,0.04306236,153.71,153.69,1.2727]
[1724774249592,0.04306236,153.71,153.7,3.2532]
[1724774250497,0.04306236,153.71,153.69,1.2727]
[1724774251213,0.04306236,153.71,153.69,4.526]
[1724774252193,0.04306236,153.71,153.7,3.2532]
[1724774254000,27.49,153.78,153.72,3.2527]
[1724774254199,229.0,153.81,153.72,3.2527]
[1724774254200,5.0,153.81,153.72,3.2527]
[1724774254505,28.49,153.84,153.74,27.49]
[1724774254706,31.73700676,153.84,153.76,27.49]
[1724774255003,3.251,153.81,153.78,3.29524028]
[1724774255406,0.04955095,153.82,153.78,0.04384028]
[1724774255698,0.04955095,153.82,153.79,3.2511]
[1724774255899,3.2509,153.81,153.78,0.04384028]
[1724774256108,0.04955095,153.82,153.78,0.04384028]
[1724774257101,3.30025095,153.82,153.79,3.2513]
[1724774257798,3.30025095,153.82,153.78,3.29534028]
[1724774258606,3.30025095,153.82,153.79,3.2512]
[1724774260303,0.04955095,153.82,153.78,0.04384028]
[1724774260508,3.2509,153.81,153.78,3.29524028]
[1724774260905,3.2511,153.8,153.78,0.04384028]
[1724774261107,27.49,153.81,153.78,0.04384028]
[1724774261509,3.2513,153.79,153.78,0.04384028]
[1724774262406,3.2509,153.81,153.78,0.04384028]
[1724774262707,0.04955095,153.82,153.78,0.04384028]
[1724774263606,3.2511,153.81,153.78,0.04384028]
[1724774263808,0.04955095,153.82,153.78,0.04384028]
[1724774264214,30.7413,153.79,153.78,0.04384028]
[1724774264712,30.7413,153.79,153.72,5.7534]
[1724774264713,3.2524,153.74,153.72,2.5007]
[1724774264905,3.2524,153.74,153.69,3.24570536]
[1724774264906,27.49,153.77,153.69,3.24570536]
[1724774265110,27.49,153.77,153.68,7.3755]
[1724774265412,3.2522,153.75,153.72,3.2526]
[1724774265715,3.29924259,153.75,153.72,3.29614608]
[1724774266614,0.04704259,153.75,153.72,3.29614608]
[1724774266807,0.04704259,153.75,153.72,0.04354608]
[1724774267318,0.04704259,153.75,153.74,3.2524]
[1724774267912,3.19154471,153.87,153.74,4.88]
[1724774268211,4.9759,153.89,153.76,34.37]
[1724774268410,0.69252657,153.86,153.77,3.20657124]
[1724774268616,0.69252657,153.87,153.77,3.20657124]
[1724774268820,3.251,153.81,153.8,0.04616293]
[1724774269015,0.04586813,153.84,153.8,0.04616293]
[1724774269210,3.2506,153.83,153.8,3.29716293]
[1724774270311,3.29616813,153.84,153.81,3.2507]
[1724774270516,0.04586813,153.84,153.8,34.41616293]
[1724774271015,0.04586813,153.84,153.81,3.2508]
[1724774271216,0.04586813,153.84,153.8,34.41616293]
[1724774272018,0.04586813,153.84,153.81,3.26232698]
[1724774272224,0.04586813,153.84,153.83,3.2505]
[1724774276433,0.04586813,153.84,153.81,3.24508836]
[1724774276434,3.29616813,153.84,153.81,3.2507]
[1724774277526,3.29616813,153.84,153.82,3.2507]
[1724774279325,3.29616813,153.84,153.8,40.10418061]
[1724774279326,0.04586813,153.84,153.8,40.10418061]
[1724774279831,0.04586813,153.84,153.83,3.2505]
[1724774280326,3.2507,153.82,153.8,1.25106293]
[1724774280521,34.41586813,153.84,153.8,0.04616293]
[1724774281120,3.2508,153.82,153.8,0.04616293]
[1724774281729,3.2509,153.81,153.8,0.04616293]
[1724774283330,3.2505,153.83,153.8,3.29716293]
[1724774283832,3.29616813,153.84,153.8,0.04616293]
[1724774284031,0.04586813,153.84,153.8,0.04616293]
[1724774284231,37.6273625,153.84,153.8,0.04616293]
[1724774284532,3.2509,153.81,153.8,0.04616293]
[1724774286135,3.2507,153.82,153.8,0.04616293]
[1724774286332,0.04586813,153.84,153.81,3.2508]
[1724774286533,0.04586813,153.84,153.8,27.51616293]
[1724774286725,0.04586813,153.84,153.82,27.47]
[1724774286931,0.04586813,153.84,153.83,3.2505]
[1724774288637,0.04586813,153.84,153.8,0.04616293]
[1724774289241,3.29626813,153.84,153.81,3.2507]
[1724774289436,0.04586813,153.84,153.8,0.04616293]
[1724774289937,3.2509,153.81,153.8,0.04616293]
[1724774290638,34.33,153.83,153.73,1.285]
[1724774290639,3.252,153.76,153.73,1.285]
[1724774290939,3.252,153.76,153.73,4.5374]
[1724774291342,3.2522,153.75,153.72,1.2115]
[1724774291735,0.04611247,153.75,153.73,34.33]
[1724774291939,34.33,153.85,153.74,3.24317295]
[1724774292140,34.33,153.85,153.74,4.92]
[1724774292341,3.2509,153.82,153.74,8.15081924]
[1724774292541,3.2509,153.82,153.76,34.33]
[1724774292936,3.2509,153.82,153.78,3.2514]
[1724774292937,0.04349166,153.81,153.78,3.2514]
[1724774293336,0.04349166,153.81,153.77,0.04792254]
[1724774293535,0.04349166,153.81,153.78,34.33]
[1724774293843,0.04349166,153.81,153.79,1.2668]
[1724774294041,0.04349166,153.81,153.8,3.2511]
[1724774294742,0.04349166,153.81,153.79,2.5079]
[1724774295246,0.04349166,153.81,153.8,3.2511]
[1724774295641,3.2504,153.84,153.8,3.2511]
[1724774296344,34.33,153.85,153.74,3.23081924]
[1724774296545,0.04722795,153.81,153.78,0.04374003]
[1724774296746,0.04163573,153.81,153.78,0.04471401]
[1724774296947,0.04163573,153.81,153.79,3.2513]
[1724774298652,0.04163573,153.81,153.8,3.2511]
[1724774300559,0.04163573,153.81,153.78,0.04471401]
[1724774301261,0.04163573,153.81,153.79,3.2513]
[1724774301455,0.04163573,153.81,153.78,0.04471401]
[1724774302058,4.92,153.89,153.77,34.33]
[1724774302259,4.92,153.89,153.8,34.33]
[1724774302756,4.92,153.89,153.78,34.33]
[1724774303056,0.04753837,153.85,153.82,0.04911708]
[1724774303659,0.04753837,153.85,153.83,3.2505]
[1724774303860,0.04753837,153.85,153.82,0.04911708]
[1724774304254,0.04753837,153.85,153.83,3.2503]
[1724774304859,0.04753837,153.85,153.82,1.36991708]
[1724774306366,3.29763837,153.85,153.82,4.62051708]
[1724774307268,3.2504,153.84,153.82,1.36991708]
[1724774307466,0.04753837,153.85,153.82,0.04911708]
[1724774307966,3.2502,153.84,153.82,0.04911708]
[1724774309068,5.20178016,153.83,153.82,3.29981708]
[1724774309274,5.20178016,153.83,153.82,0.04911708]
[1724774309463,5.20178016,153.84,153.82,0.04911708]
[1724774309664,5.20178016,153.84,153.83,3.2505]
[1724774310064,5.20210305,153.84,153.83,3.2505]
[1724774310264,5.20210305,153.84,153.82,3.29971708]
[1724774310465,3.29763837,153.85,153.82,3.29971708]
[1724774310666,5.20224649,153.83,153.82,3.29971708]
[1724774311366,5.20224649,153.84,153.82,0.04911708]
[1724774311567,5.20224649,153.83,153.82,0.04911708]
[1724774311970,5.20224649,153.84,153.82,0.04911708]
[1724774312171,5.20224649,153.83,153.82,0.04911708]
[1724774312372,5.20224649,153.83,153.82,3.29971708]
[1724774312569,5.20224649,153.84,153.82,3.29971708]
[1724774313277,3.29763837,153.85,153.82,3.29971708]
[1724774313473,5.20167489,153.83,153.82,3.29971708]
[1724774313968,3.29763837,153.85,153.82,3.29971708]
[1724774315477,3.29763837,153.85,153.83,3.2504]
[1724774316376,3.29763837,153.85,153.82,3.29971708]
[1724774318080,0.04753837,153.85,153.82,0.04911708]
[1724774318878,3.2504,153.84,153.82,0.04911708]
[1724774320176,3.29763837,153.85,153.82,3.29971708]
[1724774323381,3.2503,153.84,153.82,0.04911708]
[1724774324082,5.20485504,153.83,153.82,0.04911708]
[1724774324284,8.45535504,153.83,153.82,0.04911708]
[1724774324478,35.91535504,153.83,153.82,0.04911708]
[1724774324880,3.2513,153.79,153.76,3.2519]
[1724774325176,5.20485504,153.78,153.75,2.4226]
[1724774325481,5.20485504,153.77,153.75,2.4226]
[1724774325686,5.20485504,153.76,153.75,1.2183]
[1724774327484,5.20485504,153.76,153.75,4.4704]
[1724774329885,0.04362937,153.77,153.75,4.4704]
[1724774329886,0.04362937,153.77,153.76,3.2519]
[1724774330179,5.25145237,153.77,153.76,3.2519]
[1724774332577,5.25145237,153.77,153.75,4.4704]
[1724774332774,0.04362937,153.77,153.75,4.4704]
[1724774332974,5.20787835,153.76,153.75,4.4704]
[1724774333574,3.20357835,153.76,153.75,4.4704]
[1724774333775,1.19927835,153.76,153.75,4.4704]
[1724774334286,0.04362937,153.77,153.76,3.2519]
[1724774334891,0.04362937,153.77,153.76,30.7119]
[1724774335582,0.04362937,153.77,153.74,0.04830759]
[1724774336189,6.35084825,153.77,153.74,3.30060759]
[1724774336393,6.30721888,153.76,153.74,3.30060759]
[1724774336580,0.04362937,153.77,153.74,3.30060759]
[1724774337181,6.50544367,153.76,153.74,3.30060759]
[1724774337386,6.50544367,153.75,153.74,3.30060759]
[1724774339091,0.04362937,153.77,153.75,3.2521]
[1724774339284,6.50548384,153.76,153.75,3.2521]
[1724774339485,0.04362937,153.77,153.75,27.46]
[1724774339678,6.50526471,153.76,153.75,30.7121]
[1724774340785,6.50526471,153.76,153.75,3.2521]
[1724774341385,0.04362937,153.77,153.75,3.2521]
[1724774341581,6.35165292,153.77,153.75,3.2521]
[1724774341785,6.50534615,153.76,153.75,3.2521]
[1724774342788,0.04362937,153.77,153.75,3.2521]
[1724774342995,6.50534615,153.76,153.75,3.2521]
[1724774343196,6.50534615,153.76,153.74,3.30060759]
[1724774343492,6.50534615,153.75,153.74,3.30060759]
[1724774344702,0.04362937,153.77,153.75,3.2521]
[1724774344997,6.50534552,153.76,153.75,3.2521]
[1724774345896,11.71467968,153.76,153.75,3.2521]
[1724774346397,11.71467968,153.76,153.74,3.30060759]
[1724774346697,11.71467968,153.75,153.74,3.30060759]
[1724774347698,18.02669189,153.75,153.74,3.30060759]
[1724774347890,11.71467968,153.75,153.74,3.30060759]
[1724774348095,11.71467968,153.75,153.74,0.04830759]
[1724774348096,18.02649765,153.75,153.74,0.04830759]
[1724774348293,5.20933861,153.75,153.74,0.04830759]
[1724774348486,11.7142146,153.75,153.74,0.04830759]
[1724774348689,18.02572168,153.75,153.74,0.04830759]
[1724774348889,21.27782168,153.75,153.74,0.04830759]
[1724774349095,18.02572168,153.75,153.74,0.04830759]
[1724774349295,11.7142146,153.75,153.74,0.04830759]
[1724774349496,18.02528131,153.75,153.74,0.04830759]
[1724774350695,18.02528131,153.75,153.74,3.30070759]
[1724774351298,6.31106671,153.75,153.74,3.30070759]
[1724774351501,3.29542937,153.77,153.74,3.30070759]
[1724774351502,40.97320732,153.84,153.74,27.50830759]
[1724774351690,12.81679204,153.83,153.8,27.46]
[1724774351895,11.71307076,153.82,153.8,27.46]
[1724774352095,18.02483448,153.81,153.78,27.46]
[1724774352301,18.02483448,153.8,153.79,3.2512]
[1724774354305,11.71307076,153.8,153.79,3.2512]
[1724774354705,11.71307076,153.8,153.78,27.50696658]
[1724774354898,11.71307076,153.79,153.78,27.50696658]
[1724774355501,0.04997794,153.81,153.79,3.2512]
[1724774355799,6.50423952,153.8,153.79,3.2512]
[1724774355996,11.71597023,153.8,153.79,3.2512]
[1724774359702,11.71601501,153.8,153.79,3.2512]
[1724774363908,0.04997794,153.81,153.8,3.2511]
[1724774364111,6.55402145,153.81,153.8,30.7111]
[1724774364500,0.04997794,153.81,153.8,30.7111]
[1724774370017,0.04997794,153.81,153.8,14.2411]
[1724774373224,1.323,153.91,153.8,14.2411]
[1724774373225,6.023,153.91,153.8,54.95]
[1724774373523,6.023,153.91,153.84,10.99]
[1724774373725,3.2495,153.88,153.84,14.2401]
[1724774374115,3.29099843,153.88,153.84,14.28385669]
[1724774374625,10.99,153.86,153.84,0.04375669]
[1724774374824,10.99,153.86,153.76,1.3014]
[1724774375018,10.99,153.84,153.77,10.99]
[1724774375213,10.99,153.84,153.75,4.7]
[1724774375519,10.99,153.82,153.75,10.99]
[1724774375719,0.04200434,153.8,153.77,0.04511647]
[1724774376018,3.2515,153.78,153.77,0.04511647]
[1724774376319,0.04200434,153.8,153.77,0.04511647]
[1724774376520,5.20299235,153.79,153.77,0.04511647]
[1724774376723,11.70830898,153.78,153.77,0.04511647]
[1724774376917,18.01992401,153.78,153.77,0.04511647]
[1724774378622,0.04200434,153.8,153.77,0.04511647]
[1724774378827,11.51604386,153.78,153.77,0.04511647]
[1724774379128,18.02152169,153.78,153.77,0.04511647]
[1724774379624,18.02152169,153.78,153.77,3.29681647]
[1724774379816,11.70954268,153.78,153.77,3.29681647]
[1724774382331,0.04200434,153.8,153.78,3.2515]
[1724774382526,6.50501762,153.79,153.78,3.2515]
[1724774382724,11.71046852,153.79,153.78,3.2515]
[1724774382929,0.04200434,153.8,153.78,3.2515]
[1724774383130,11.7104667,153.79,153.78,3.2515]
[1724774383326,18.02420098,153.79,153.78,3.2515]
[1724774384224,11.51757116,153.79,153.78,3.2515]
[1724774384430,18.02256522,153.79,153.78,3.2515]
[1724774387927,18.02256522,153.79,153.77,3.29671647]
[1724774388127,11.71044314,153.78,153.77,3.29671647]
[1724774389433,18.02217865,153.78,153.77,3.29671647]
[1724774389834,11.71044314,153.78,153.77,3.29671647]
[1724774390023,6.50499406,153.78,153.77,30.78671647]
[1724774390227,0.04200434,153.8,153.79,3.2513]
[1724774390526,0.04200434,153.8,153.77,0.04511647]
[1724774391429,0.04200434,153.8,153.77,27.53511647]
[1724774392023,0.04200434,153.8,153.77,0.04511647]
[1724774392228,6.30610627,153.79,153.77,0.04511647]
[1724774392831,0.04200434,153.8,153.77,0.04511647]
[1724774394229,3.29310434,153.8,153.77,0.04511647]
[1724774394531,0.04200434,153.8,153.77,0.04511647]
[1724774394733,0.04200434,153.8,153.77,3.29681647]
[1724774396632,3.29310434,153.8,153.77,0.04511647]
[1724774397535,0.04200434,153.8,153.78,10.99]
[1724774397731,0.04200434,153.8,153.79,3.2513]
[1724774398439,0.04200434,153.8,153.79,14.2413]
[1724774400046,0.04200434,153.8,153.77,12.34981647]
[1724774400443,0.04200434,153.8,153.77,1.35981647]
[1724774400647,0.04200434,153.8,153.77,3.29671647]
[1724774402742,0.04200434,153.8,153.77,0.04511647]
[1724774404749,3.2514,153.79,153.77,0.04511647]
[1724774405644,3.29310434,153.8,153.77,0.04511647]
[1724774405843,0.04200434,153.8,153.77,0.04511647]
[1724774407650,3.2515,153.78,153.77,0.04511647]
[1724774407944,1.3284,153.83,153.71,3.25008107]
[1724774408143,1.3284,153.83,153.71,3.2529]
[1724774408344,1.0,153.82,153.71,3.2529]
[1724774408638,3.2517,153.78,153.73,3.2524]
[1724774408948,4.7,153.79,153.7,1.266]
[1724774409249,0.04216173,153.76,153.74,3.2523]
[1724774409644,0.04216173,153.76,153.73,0.04170038]
[1724774409947,0.04216173,153.76,153.65,5.9548]
[1724774410147,4.7,153.78,153.65,5.9548]
[1724774410338,3.2529,153.72,153.66,3.254]
[1724774410742,0.04942224,153.71,153.66,3.254]
[1724774410945,0.04942224,153.71,153.67,0.04845183]
[1724774412147,3.30242224,153.71,153.67,0.04845183]
[1724774413155,3.2532,153.7,153.67,0.04845183]
[1724774413751,0.04942224,153.71,153.68,3.2536]
[1724774413951,0.04942224,153.71,153.67,0.04845183]
[1724774415762,3.2533,153.7,153.67,0.04845183]
[1724774416654,0.04942224,153.71,153.67,0.04845183]
[1724774417056,3.2536,153.68,153.67,0.04845183]
[1724774417559,4.7,153.72,153.61,2.6521]
[1724774417756,3.2539,153.67,153.61,2.6521]
[1724774417951,4.7,153.72,153.64,3.2544]
[1724774418147,4.7,153.72,153.61,2.6521]
[1724774418350,1.2909,153.75,153.61,2.6521]
[1724774418650,0.04131573,153.68,153.65,0.04437751]
[1724774418848,3.254,153.67,153.65,0.04108885]
[1724774419051,0.04769826,153.68,153.65,0.04108885]
[1724774419257,3.254,153.66,153.65,0.04108885]
[1724774420452,3.2538,153.67,153.65,0.04108885]
[1724774420851,0.04769826,153.68,153.65,0.04108885]
[1724774421565,3.34446951,153.68,153.65,0.04108885]
[1724774422064,3.254,153.66,153.65,0.04108885]
[1724774426655,3.254,153.67,153.65,0.04108885]
[1724774426860,0.04769826,153.68,153.65,0.04108885]
[1724774428067,0.04769826,153.68,153.65,3.35944822]
[1724774428568,0.04769826,153.68,153.67,3.2538]
[1724774428867,0.04769826,153.68,153.66,3.254]
[1724774429165,0.04769826,153.68,153.65,0.04108885]
[1724774429559,0.04769826,153.68,153.67,3.2538]
[1724774429764,0.04769826,153.68,153.65,0.04108885]
[1724774430161,0.04769826,153.68,153.67,3.2538]
[1724774430965,0.04769826,153.68,153.66,3.254]
[1724774431767,0.04769826,153.68,153.65,3.29528885]
[1724774431973,3.2538,153.67,153.65,0.04108885]
[1724774432164,0.04769826,153.68,153.65,0.04108885]
[1724774432562,3.254,153.67,153.65,0.04108885]
[1724774432767,0.04769826,153.68,153.65,0.04108885]
[1724774433668,3.254,153.66,153.65,0.04108885]
[1724774434367,3.2539,153.67,153.65,0.04108885]
[1724774436474,3.254,153.66,153.65,0.04108885]
[1724774439073,3.22102519,153.66,153.58,1.3281]
[1724774439270,1.2355,153.68,153.55,1.287]
[1724774439470,1.2355,153.68,153.55,6.027]
[1724774439778,1.2355,153.68,153.57,3.2558]
[1724774439979,0.05000186,153.64,153.61,0.04879222]
[1724774440171,3.2549,153.62,153.61,0.04879222]
[1724774440377,4.74,153.64,153.55,3.2563]
[1724774441373,0.04574373,153.61,153.58,0.04147211]
[1724774441878,3.2555,153.59,153.58,0.04147211]
[1724774445086,3.2554,153.6,153.58,0.04147211]
[1724774445384,0.04574373,153.61,153.58,0.04147211]
[1724774445678,3.30094373,153.61,153.58,3.29717211]
[1724774446786,3.2553,153.6,153.58,3.29717211]
[1724774447178,0.04574373,153.61,153.58,3.29717211]
[1724774447381,0.04574373,153.61,153.58,0.04147211]
[1724774448880,3.2555,153.59,153.58,0.04147211]
[1724774451803,4.74,153.59,153.49,1.2383]
[1724774452279,3.2566,153.54,153.51,3.2572]
[1724774452882,3.2569,153.53,153.51,0.0470924]
[1724774453287,0.04400897,153.54,153.51,0.0470924]
[1724774453788,3.257,153.52,153.51,0.0470924]
[1724774460795,0.04400897,153.54,153.51,0.0470924]
[1724774461497,4.74,153.62,153.51,0.0470924]
[1724774461689,227.29502175,153.66,153.5,3.27608681]
[1724774461890,224.0,153.66,153.52,4.74]
[1724774462097,0.6944768,153.65,153.53,1.2917]
[1724774462391,3.2553,153.61,153.54,1.2276]
[1724774462592,3.30391213,153.61,153.57,0.04139401]
[1724774462789,0.04861213,153.61,153.57,0.04139401]
[1724774463187,0.04861213,153.61,153.57,3.29719401]
[1724774463396,0.04861213,153.61,153.57,0.04139401]
[1724774464195,3.2557,153.58,153.57,0.04139401]
[1724774465305,3.2565,153.55,153.5,3.2573]
[1724774465492,1.3305,153.62,153.5,4.5331]
[1724774465698,1.3305,153.62,153.5,1.2758]
[1724774466197,0.04463744,153.58,153.54,0.04949219]
[1724774466400,3.2564,153.55,153.54,0.04949219]
[1724774467399,3.2562,153.56,153.54,0.04949219]
[1724774467602,0.04463744,153.58,153.54,0.04949219]
[1724774468000,3.2561,153.57,153.54,0.04949219]
[1724774468205,0.04463744,153.58,153.54,0.04949219]
[1724774468712,3.2561,153.57,153.54,0.04949219]
[1724774469098,0.04463744,153.58,153.54,0.04949219]
[1724774469410,3.2561,153.57,153.54,0.04949219]
[1724774469601,0.04463744,153.58,153.54,0.04949219]
[1724774469807,3.256,153.57,153.54,0.04949219]
[1724774470509,3.30043744,153.58,153.54,3.30599219]
[1724774470704,3.30043744,153.58,153.54,0.04949219]
[1724774470705,0.04463744,153.58,153.54,0.04949219]
[1724774471209,0.04463744,153.58,153.56,3.256]
[1724774471405,0.04463744,153.58,153.57,1.3253]
[1724774471608,0.04463744,153.58,153.57,4.5813]
[1724774471906,225.0,153.66,153.57,1.3253]
[1724774472113,3.2549,153.62,153.58,3.2557]
[1724774472716,7.98110061,153.66,153.57,1.3253]
[1724774473011,0.04649933,153.63,153.6,0.04196715]
[1724774473304,3.2551,153.61,153.6,0.04196715]
[1724774476019,3.255,153.62,153.6,0.04196715]
[1724774476308,0.04649933,153.63,153.62,3.2549]
[1724774476506,4.76,153.71,153.59,4.76]
[1724774476507,4.76,153.71,153.61,2.5072]
[1724774476710,9.1439,153.77,153.61,2.5072]
[1724774476908,3.253,153.72,153.61,5.77257258]
[1724774477210,0.6942976,153.72,153.62,1.3342]
[1724774477405,3.2531,153.71,153.67,3.2537]
[1724774477608,3.29564197,153.71,153.67,3.30225313]
[1724774478504,3.2532,153.7,153.67,0.04855313]
[1724774479211,3.2535,153.69,153.67,0.04855313]
[1724774480415,3.2536,153.68,153.67,0.04855313]
[1724774481816,3.23136768,153.69,153.57,4.76]
[1724774482119,6.0121,153.7,153.56,4.76]
[1724774482414,1.2498,153.68,153.54,3.7325]
[1724774482715,0.04697939,153.63,153.59,0.04677611]
[1724774483016,3.2555,153.6,153.59,0.04677611]
[1724774486222,3.2552,153.61,153.59,0.04677611]
[1724774487119,3.2553,153.6,153.59,0.04677611]
[1724774490025,0.04697939,153.63,153.59,0.04677611]
[1724774491125,3.30177939,153.63,153.59,0.04677611]
[1724774491524,3.30177939,153.63,153.6,3.2552]
[1724774492931,3.30177939,153.63,153.59,3.30227611]
[1724774494639,0.04697939,153.63,153.59,0.04677611]
[1724774495535,0.04697939,153.63,153.61,3.255]
[1724774495837,0.04697939,153.63,153.59,0.04677611]
[1724774496031,0.04697939,153.63,153.6,3.2553]
[1724774496226,0.04697939,153.63,153.61,1.2982]
[1724774496732,0.04697939,153.63,153.61,4.5533]
[1724774497130,0.04697939,153.63,153.61,1.2982]
[1724774497434,0.04697939,153.63,153.61,4.5532]
[1724774497628,0.04697939,153.63,153.61,1.2982]
[1724774498335,0.04697939,153.63,153.59,0.04677611]
[1724774498535,3.2553,153.6,153.59,0.04677611]
[1724774504244,0.04697939,153.63,153.59,0.04677611]
[1724774505429,3.2553,153.6,153.59,0.04677611]
[1724774509435,0.04697939,153.63,153.51,4.88]
[1724774509634,3.2563,153.56,153.5,7.3549]
[1724774509833,3.2322673,153.6,153.5,7.3549]
[1724774510034,3.2563,153.56,153.53,3.2568]
[1724774510537,3.2977027,153.56,153.53,3.29978031]
[1724774510934,3.2564,153.55,153.53,0.04298031]
[1724774511335,0.0414027,153.56,153.53,0.04298031]
[1724774511531,3.2566,153.54,153.53,0.04298031]
[1724774515145,0.0414027,153.56,153.53,0.04298031]
[1724774515440,3.2555,153.6,153.56,3.2561]
[1724774515636,4.88,153.64,153.56,3.2561]
[1724774516042,4.88,153.64,153.56,4.5057]
[1724774516341,0.04790286,153.62,153.58,0.04505912]
[1724774516848,3.2551,153.61,153.58,0.04505912]
[1724774518644,0.04790286,153.62,153.58,0.04505912]
[1724774519045,3.2555,153.59,153.58,0.04505912]
[1724774519641,0.04790286,153.62,153.58,3.30075912]
[1724774519846,0.04790286,153.62,153.58,0.04505912]
[1724774520752,3.30280286,153.62,153.58,3.30075912]
[1724774523447,3.30280286,153.62,153.59,3.2555]
[1724774523641,0.04790286,153.62,153.58,0.04505912]
[1724774525345,3.30290286,153.62,153.59,3.2554]
[1724774525643,0.04790286,153.62,153.58,0.04505912]
[1724774525948,3.2553,153.6,153.58,0.04505912]
[1724774526141,0.04790286,153.62,153.58,0.04505912]
[1724774527146,3.2555,153.59,153.58,0.04505912]
[1724774531547,4.8,153.6,153.58,0.04505912]
[1724774531750,4.84790286,153.62,153.58,0.04505912]
[1724774532254,3.2554,153.6,153.58,0.04505912]
[1724774532551,4.84790286,153.62,153.58,0.04505912]
[1724774533054,3.2552,153.61,153.58,0.04505912]
[1724774533352,3.2555,153.6,153.58,0.04505912]
[1724774535355,3.2555,153.59,153.58,0.04505912]
[1724774539049,0.04790286,153.62,153.58,0.04505912]
[1724774539950,3.30280286,153.62,153.58,0.04505912]
[1724774540454,0.04790286,153.62,153.58,0.04505912]
[1724774540758,3.2542,153.66,153.62,3.2547]
[1724774541757,3.2543,153.65,153.62,0.04510648]
[1724774542157,3.2543,153.65,153.62,3.29990648]
[1724774542353,3.2545,153.64,153.62,0.04510648]
[1724774542546,34.42938367,153.66,153.62,0.04510648]
[1724774543950,3.2547,153.63,153.62,0.04510648]
[1724774545464,3.2545,153.64,153.62,0.04510648]
[1724774546561,0.04938367,153.66,153.63,3.2545]
[1724774547063,3.2543,153.65,153.62,3.29990648]
[1724774547256,0.04938367,153.66,153.62,0.04510648]
[1724774547663,0.04938367,153.66,153.65,3.2543]
[1724774551161,0.04938367,153.66,153.64,3.2543]
[1724774551362,0.04938367,153.66,153.62,0.04510648]
[1724774551678,3.30348367,153.66,153.62,3.29980648]
[1724774551865,0.04938367,153.66,153.62,3.29980648]
[1724774552165,0.04938367,153.66,153.62,0.04510648]
[1724774552366,3.2543,153.65,153.62,3.30000648]
[1724774553766,3.2543,153.65,153.62,0.04510648]
[1724774556763,3.2547,153.63,153.62,0.04510648]
[1724774557268,3.2546,153.64,153.62,0.04510648]
[1724774557872,3.2547,153.63,153.62,0.04510648]
[1724774558866,34.38,153.64,153.55,1.2714]
[1724774559068,34.38,153.61,153.55,1.2714]
[1724774559282,3.2559,153.58,153.55,4.5277]
[1724774559670,34.38,153.57,153.5,1.2969]
[1724774559871,34.38,153.57,153.52,0.04887236]
[1724774559872,0.04113965,153.55,153.52,0.04887236]
[1724774560270,3.2568,153.53,153.52,0.04887236]
[1724774561778,3.2566,153.54,153.52,0.04887236]
[1724774562079,34.42113965,153.55,153.52,0.04887236]
[1724774562978,0.04113965,153.55,153.52,0.04887236]
[1724774563474,3.29753965,153.55,153.52,0.04887236]
[1724774563882,3.2567,153.54,153.52,0.04887236]
[1724774564073,0.04113965,153.55,153.52,0.04887236]
[1724774564572,3.2567,153.54,153.52,0.04887236]
[1724774564775,0.04113965,153.55,153.52,0.04887236]
[1724774565282,3.2568,153.53,153.52,0.04887236]
[1724774565576,37.6368,153.53,153.52,0.04887236]
[1724774566870,3.2568,153.53,153.52,0.04887236]
[1724774574692,3.2581,153.47,153.44,6.0769]
[1724774574992,3.2581,153.47,153.44,4.5555]
[1724774575294,3.2581,153.47,153.44,1.2969]
[1724774575492,27.54,153.51,153.46,3.2583]
[1724774575697,0.04621701,153.5,153.47,0.04535873]
[1724774576192,0.04621701,153.5,153.47,3.30335873]
[1724774576499,0.04621701,153.5,153.47,0.04535873]
[1724774576693,3.30381701,153.5,153.47,0.04535873]
[1724774576893,0.04621701,153.5,153.47,0.04535873]
[1724774577093,0.04621701,153.5,153.47,2.71695873]
[1724774577490,3.3253048,153.6,153.48,27.54]
[1724774577797,3.2556,153.59,153.52,27.54]
[1724774577998,3.32475234,153.61,153.52,27.54]
[1724774578397,3.2559,153.58,153.52,27.54]
[1724774578590,0.04642439,153.57,153.53,0.04745344]